[Event "*** Titled Tuesday Blitz"]
[Site "Chess.com"]
[Date "2018.09.04"]
[Round "8"]
[White "NemtsevIgor"]
[Black "BvsN"]
[Result "1/2-1/2"]
[WhiteElo "2365"]
[BlackElo "2221"]
[TimeControl "180+2"]
[EndTime "15:25:42 PDT"]
[Termination "Game drawn by repetition"]

1. c3 {[%clk 0:03:01.9]} 1... d5 {[%clk 0:02:58.2]} 2. Qa4+ {[%clk 0:03:01.9]}
2... Nc6 {[%clk 0:02:57.3]} 3. d3 {[%clk 0:03:01]} 3... e5 {[%clk 0:02:57.9]} 4.
h3 {[%clk 0:03:01.2]} 4... Nf6 {[%clk 0:02:58.7]} 5. g4 {[%clk 0:03:01.8]} 5...
h6 {[%clk 0:02:56.7]} 6. Bg2 {[%clk 0:03:02.5]} 6... Bd7 {[%clk 0:02:54.9]} 7.
Nd2 {[%clk 0:03:02.3]} 7... Bc5 {[%clk 0:02:49.5]} 8. Nf1 {[%clk 0:02:59.2]}
8... Ne7 {[%clk 0:02:33.4]} 9. Qb3 {[%clk 0:02:57.6]} 9... Bb6 {[%clk
0:02:30.3]} 10. Ng3 {[%clk 0:02:55.8]} 10... c6 {[%clk 0:02:29.4]} 11. Nf3
{[%clk 0:02:54.5]} 11... Ng6 {[%clk 0:02:28.8]} 12. g5 {[%clk 0:02:48]} 12...
hxg5 {[%clk 0:02:27.1]} 13. Nxg5 {[%clk 0:02:49.1]} 13... Nh5 {[%clk 0:02:17.5]}
14. e4 {[%clk 0:02:28.3]} 14... Nhf4 {[%clk 0:02:12.9]} 15. Bf1 {[%clk
0:02:21.7]} 15... Qxg5 {[%clk 0:02:11.2]} 16. exd5 {[%clk 0:02:18.8]} 16... cxd5
{[%clk 0:02:06.7]} 17. d4 {[%clk 0:02:16.5]} 17... Nh4 {[%clk 0:01:59.3]} 18.
Be3 {[%clk 0:02:07.6]} 18... Nf3+ {[%clk 0:01:52.7]} 19. Kd1 {[%clk 0:02:04.2]}
19... exd4 {[%clk 0:01:50.1]} 20. cxd4 {[%clk 0:01:59.4]} 20... Qf6 {[%clk
0:01:30.6]} 21. Bb5 {[%clk 0:01:50]} 21... Bxb5 {[%clk 0:01:21.5]} 22. Qxb5+
{[%clk 0:01:50.6]} 22... Kf8 {[%clk 0:01:23.2]} 23. Rc1 {[%clk 0:01:33]} 23...
Bxd4 {[%clk 0:01:13.7]} 24. Qxb7 {[%clk 0:01:28.9]} 24... Rd8 {[%clk 0:00:56]}
25. Rc6 {[%clk 0:01:14.8]} 25... Qe5 {[%clk 0:00:38.4]} 26. Rc8 {[%clk
0:01:14.8]} 26... Ne6 {[%clk 0:00:31.7]} 27. Rxd8+ {[%clk 0:01:07]} 27... Nxd8
{[%clk 0:00:32.5]} 28. Qb4+ {[%clk 0:01:08.5]} 28... Qe7 {[%clk 0:00:17]} 29.
Qxe7+ {[%clk 0:01:04.4]} 29... Kxe7 {[%clk 0:00:18.3]} 30. Nf5+ {[%clk
0:01:05.6]} 30... Kf6 {[%clk 0:00:18.9]} 31. Nxd4 {[%clk 0:01:06.7]} 31... Ne5
{[%clk 0:00:17.4]} 32. Ke2 {[%clk 0:01:05.7]} 32... Ne6 {[%clk 0:00:18.1]} 33.
f4 {[%clk 0:00:58.1]} 33... Nc4 {[%clk 0:00:16.8]} 34. Nxe6 {[%clk 0:00:53.2]}
34... Nxe3 {[%clk 0:00:14.3]} 35. Kxe3 {[%clk 0:00:45.7]} 35... fxe6 {[%clk
0:00:14.3]} 36. h4 {[%clk 0:00:45.6]} 36... Kf5 {[%clk 0:00:13.5]} 37. h5 {[%clk
0:00:45.2]} 37... Rc8 {[%clk 0:00:11.6]} 38. h6 {[%clk 0:00:43.9]} 38... gxh6
{[%clk 0:00:12.4]} 39. Rxh6 {[%clk 0:00:45]} 39... Rc2 {[%clk 0:00:13.9]} 40.
Rh5+ {[%clk 0:00:45.6]} 40... Kf6 {[%clk 0:00:11.9]} 41. Rh6+ {[%clk 0:00:45.8]}
41... Kf5 {[%clk 0:00:12.5]} 42. Rh7 {[%clk 0:00:42.9]} 42... Rxb2 {[%clk
0:00:10.5]} 43. Rxa7 {[%clk 0:00:43.3]} 43... Rh2 {[%clk 0:00:09.4]} 44. Rf7+
{[%clk 0:00:42.3]} 44... Kg6 {[%clk 0:00:07.8]} 45. Rf8 {[%clk 0:00:43.4]} 45...
Kg7 {[%clk 0:00:08.2]} 46. Ra8 {[%clk 0:00:42.7]} 46... Kf6 {[%clk 0:00:07.4]}
47. a4 {[%clk 0:00:44.2]} 47... Kf5 {[%clk 0:00:07.1]} 48. a5 {[%clk 0:00:45.2]}
48... Rh3+ {[%clk 0:00:07.7]} 49. Kd4 {[%clk 0:00:46.4]} 49... Kxf4 {[%clk
0:00:08.3]} 50. Rf8+ {[%clk 0:00:46.1]} 50... Kg5 {[%clk 0:00:07.1]} 51. a6
{[%clk 0:00:46.1]} 51... Ra3 {[%clk 0:00:07.7]} 52. Ra8 {[%clk 0:00:47]} 52...
Kf4 {[%clk 0:00:08.5]} 53. a7 {[%clk 0:00:47.8]} 53... e5+ {[%clk 0:00:09.9]}
54. Kxd5 {[%clk 0:00:48.8]} 54... Ra5+ {[%clk 0:00:09.6]} 55. Kc4 {[%clk
0:00:47.2]} 55... Ke3 {[%clk 0:00:10.6]} 56. Kb4 {[%clk 0:00:46.4]} 56... Ra1
{[%clk 0:00:11.4]} 57. Kc3 {[%clk 0:00:46.2]} 57... e4 {[%clk 0:00:11.9]} 58.
Kb2 {[%clk 0:00:46.3]} 58... Ra6 {[%clk 0:00:12.5]} 59. Kb3 {[%clk 0:00:46.8]}
59... Ke2 {[%clk 0:00:13.3]} 60. Kb4 {[%clk 0:00:45.6]} 60... e3 {[%clk
0:00:14.1]} 61. Kb5 {[%clk 0:00:46.8]} 61... Ra1 {[%clk 0:00:15.2]} 62. Kb6
{[%clk 0:00:47.5]} 62... Rb1+ {[%clk 0:00:16.2]} 63. Kc7 {[%clk 0:00:47.8]}
63... Rc1+ {[%clk 0:00:17.4]} 64. Kb7 {[%clk 0:00:48.7]} 64... Rb1+ {[%clk
0:00:18.6]} 65. Kc7 {[%clk 0:00:49.8]} 65... Rc1+ {[%clk 0:00:19.9]} 66. Kb7
{[%clk 0:00:51]} 66... Rb1+ {[%clk 0:00:21.2]} 67. Kc7 {[%clk 0:00:51.7]} 67...
Ra1 {[%clk 0:00:22.4]} 68. Kb7 {[%clk 0:00:51.8]} 68... Rb1+ {[%clk 0:00:23.4]}
69. Kc7 {[%clk 0:00:52.6]} 69... Rc1+ {[%clk 0:00:24]} 1/2-1/2

[Event "*** Titled Tuesday Blitz"]
[Site "Chess.com"]
[Date "2018.09.04"]
[Round "8"]
[White "bugsbunny444"]
[Black "LawrenceTrent"]
[Result "1-0"]
[WhiteElo "2447"]
[BlackElo "2538"]
[TimeControl "180+2"]
[EndTime "15:25:44 PDT"]
[Termination "bugsbunny444 won on time"]

1. Nf3 {[%clk 0:03:01.9]} 1... c5 {[%clk 0:03:01.8]} 2. c4 {[%clk 0:03:03]} 2...
Nc6 {[%clk 0:02:57.3]} 3. d4 {[%clk 0:03:03.6]} 3... cxd4 {[%clk 0:02:56.5]} 4.
Nxd4 {[%clk 0:03:05.5]} 4... g6 {[%clk 0:02:56.8]} 5. e4 {[%clk 0:03:06.3]} 5...
Bg7 {[%clk 0:02:57.3]} 6. Be3 {[%clk 0:03:07.9]} 6... Nf6 {[%clk 0:02:53.2]} 7.
Nc3 {[%clk 0:03:09]} 7... O-O {[%clk 0:02:51.7]} 8. Be2 {[%clk 0:03:10.2]} 8...
d6 {[%clk 0:02:51.6]} 9. O-O {[%clk 0:03:11]} 9... Bd7 {[%clk 0:02:50.2]} 10. f3
{[%clk 0:03:12.2]} 10... Nxd4 {[%clk 0:02:39.2]} 11. Bxd4 {[%clk 0:03:14.1]}
11... a5 {[%clk 0:02:40.3]} 12. b3 {[%clk 0:03:14.9]} 12... Bc6 {[%clk
0:02:39.9]} 13. Qd2 {[%clk 0:03:06.1]} 13... Nd7 {[%clk 0:02:33.1]} 14. Be3
{[%clk 0:03:06.8]} 14... Nc5 {[%clk 0:02:25.7]} 15. Rab1 {[%clk 0:03:07.9]}
15... e6 {[%clk 0:02:21.8]} 16. Rfd1 {[%clk 0:02:32.3]} 16... Be5 {[%clk
0:02:21.6]} 17. Bd4 {[%clk 0:02:33.5]} 17... Qe7 {[%clk 0:02:18.4]} 18. Qe3
{[%clk 0:02:28.9]} 18... b6 {[%clk 0:02:07.2]} 19. Bf1 {[%clk 0:02:14.7]} 19...
Rad8 {[%clk 0:02:04.1]} 20. Rd2 {[%clk 0:02:14.3]} 20... Bxd4 {[%clk 0:01:58.9]}
21. Rxd4 {[%clk 0:02:10]} 21... e5 {[%clk 0:01:53.6]} 22. Rd2 {[%clk 0:02:08.7]}
22... Ne6 {[%clk 0:01:52.6]} 23. Qxb6 {[%clk 0:01:47.3]} 23... Nd4 {[%clk
0:01:53.2]} 24. Ne2 {[%clk 0:01:21.7]} 24... Bxe4 {[%clk 0:01:29.9]} 25. fxe4
{[%clk 0:01:04.2]} 25... Nf3+ {[%clk 0:01:29.7]} 26. gxf3 {[%clk 0:01:01.9]}
26... Qg5+ {[%clk 0:01:30.9]} 27. Kh1 {[%clk 0:00:45.6]} 27... Qxd2 {[%clk
0:01:32.6]} 28. a4 {[%clk 0:00:15.2]} 28... f5 {[%clk 0:01:34.4]} 29. Qc6 {[%clk
0:00:08.2]} 29... fxe4 {[%clk 0:01:31]} 30. Qxe4 {[%clk 0:00:07.9]} 30... Kg7
{[%clk 0:01:26.1]} 31. Ng1 {[%clk 0:00:07.2]} 31... Rf4 {[%clk 0:01:25.4]} 32.
Qe2 {[%clk 0:00:04.1]} 32... Qd4 {[%clk 0:01:24.4]} 33. Rd1 {[%clk 0:00:04.3]}
33... Qb6 {[%clk 0:01:23.6]} 34. Rd3 {[%clk 0:00:03.7]} 34... Rdf8 {[%clk
0:01:20.3]} 35. Qd2 {[%clk 0:00:04.4]} 35... R4f6 {[%clk 0:01:18.6]} 36. Bg2
{[%clk 0:00:05.3]} 36... h6 {[%clk 0:00:54.3]} 37. Qe3 {[%clk 0:00:06.5]} 37...
Qb4 {[%clk 0:00:43.4]} 38. Rd5 {[%clk 0:00:07.7]} 38... Rb8 {[%clk 0:00:35.9]}
39. Rb5 {[%clk 0:00:08.2]} 39... Rxb5 {[%clk 0:00:34.8]} 40. axb5 {[%clk
0:00:09.5]} 40... d5 {[%clk 0:00:19.6]} 41. Qxe5 {[%clk 0:00:05.8]} 41... dxc4
{[%clk 0:00:18.1]} 42. Qc7+ {[%clk 0:00:06.7]} 42... Rf7 {[%clk 0:00:18.2]} 43.
Qxc4 {[%clk 0:00:08.2]} 43... Qe1 {[%clk 0:00:19]} 44. Qd4+ {[%clk 0:00:05]}
44... Kh7 {[%clk 0:00:19]} 45. b6 {[%clk 0:00:06.2]} 45... Qe6 {[%clk
0:00:18.2]} 46. f4 {[%clk 0:00:06.9]} 46... Qxb3 {[%clk 0:00:15.7]} 47. b7
{[%clk 0:00:07.3]} 47... Rxb7 {[%clk 0:00:15.4]} 48. Bd5 {[%clk 0:00:03.7]}
48... Qb4 {[%clk 0:00:16.4]} 49. Qe5 {[%clk 0:00:03.6]} 49... Rd7 {[%clk
0:00:15.5]} 50. h3 {[%clk 0:00:04.2]} 50... Qc5 {[%clk 0:00:15.4]} 51. Be4
{[%clk 0:00:04.5]} 51... Qd5 {[%clk 0:00:17.2]} 52. Bxd5 {[%clk 0:00:05.3]} 1-0

[Event "*** Titled Tuesday Blitz"]
[Site "Chess.com"]
[Date "2018.09.04"]
[Round "8"]
[White "AlexanderL"]
[Black "danyuffa"]
[Result "0-1"]
[WhiteElo "2817"]
[BlackElo "2721"]
[TimeControl "180+2"]
[EndTime "15:26:01 PDT"]
[Termination "danyuffa won on time"]

1. Nf3 {[%clk 0:03:01.9]} 1... Nf6 {[%clk 0:02:59.8]} 2. c4 {[%clk 0:03:02.7]}
2... g6 {[%clk 0:03:00.6]} 3. Nc3 {[%clk 0:03:03.7]} 3... Bg7 {[%clk 0:03:02.1]}
4. e4 {[%clk 0:03:04.5]} 4... d6 {[%clk 0:03:03.5]} 5. d4 {[%clk 0:03:05.6]}
5... O-O {[%clk 0:03:04.8]} 6. Be2 {[%clk 0:03:06.8]} 6... e5 {[%clk 0:03:05.8]}
7. O-O {[%clk 0:03:07.5]} 7... Nc6 {[%clk 0:03:06.5]} 8. Be3 {[%clk 0:03:08.3]}
8... Ng4 {[%clk 0:03:05.8]} 9. Bg5 {[%clk 0:03:09]} 9... f6 {[%clk 0:03:06.7]}
10. Bh4 {[%clk 0:03:09.6]} 10... g5 {[%clk 0:03:02.6]} 11. Bg3 {[%clk
0:03:10.1]} 11... Nh6 {[%clk 0:03:02.2]} 12. d5 {[%clk 0:03:09]} 12... Ne7
{[%clk 0:03:03.1]} 13. Nd2 {[%clk 0:03:08.7]} 13... Ng6 {[%clk 0:03:01.8]} 14.
Rc1 {[%clk 0:03:04.7]} 14... f5 {[%clk 0:03:01.1]} 15. exf5 {[%clk 0:03:05.4]}
15... Nxf5 {[%clk 0:03:01.6]} 16. Nde4 {[%clk 0:03:03.9]} 16... Nf4 {[%clk
0:02:59.3]} 17. Bg4 {[%clk 0:02:58.1]} 17... Nd4 {[%clk 0:02:54.4]} 18. Bxc8
{[%clk 0:02:55.4]} 18... Rxc8 {[%clk 0:02:55.2]} 19. f3 {[%clk 0:02:25.3]} 19...
h5 {[%clk 0:02:44.7]} 20. Bf2 {[%clk 0:02:25.1]} 20... Qe7 {[%clk 0:02:27.1]}
21. Be3 {[%clk 0:02:24.7]} 21... Nf5 {[%clk 0:02:17.9]} 22. Bd2 {[%clk
0:02:23.2]} 22... Bh6 {[%clk 0:02:03.3]} 23. Rb1 {[%clk 0:02:05.8]} 23... Qg7
{[%clk 0:01:52.7]} 24. h3 {[%clk 0:01:17.9]} 24... Qg6 {[%clk 0:01:47.5]} 25. c5
{[%clk 0:01:06]} 25... Kh8 {[%clk 0:01:43.9]} 26. cxd6 {[%clk 0:01:04]} 26...
cxd6 {[%clk 0:01:44.1]} 27. Kh2 {[%clk 0:00:40.3]} 27... h4 {[%clk 0:01:43.1]}
28. Kg1 {[%clk 0:00:34.7]} 28... Rc7 {[%clk 0:01:37]} 29. Qa4 {[%clk 0:00:30.6]}
29... a6 {[%clk 0:01:35.1]} 30. Nf2 {[%clk 0:00:26.8]} 30... Ng3 {[%clk
0:01:17.9]} 31. Rfe1 {[%clk 0:00:28]} 31... g4 {[%clk 0:01:11.7]} 32. hxg4
{[%clk 0:00:07]} 32... Nxg2 {[%clk 0:00:56.5]} 33. Kxg2 {[%clk 0:00:06.2]} 33...
Bxd2 {[%clk 0:00:55.4]} 34. Rh1 {[%clk 0:00:05.7]} 34... Nxh1 {[%clk 0:00:52.4]}
35. Rxh1 {[%clk 0:00:07.6]} 35... Rh7 {[%clk 0:00:52.3]} 36. Nce4 {[%clk
0:00:06.6]} 36... Be3 {[%clk 0:00:48.9]} 37. Nh3 {[%clk 0:00:04.7]} 37... Rhf7
{[%clk 0:00:40.2]} 38. Qd1 {[%clk 0:00:02.9]} 38... Rxf3 {[%clk 0:00:37.7]} 39.
Qxf3 {[%clk 0:00:03.5]} 39... Rxf3 {[%clk 0:00:38.3]} 40. Kxf3 {[%clk
0:00:05.4]} 40... Bh6 {[%clk 0:00:29]} 41. Nhf2 {[%clk 0:00:06.4]} 41... Qf7+
{[%clk 0:00:27]} 42. Kg2 {[%clk 0:00:07.4]} 42... Qe7 {[%clk 0:00:26]} 43. Rh3
{[%clk 0:00:03.1]} 43... Kg7 {[%clk 0:00:23.1]} 44. Rc3 {[%clk 0:00:03]} 44...
Bf4 {[%clk 0:00:13.4]} 45. Rd3 {[%clk 0:00:04]} 45... Qc7 {[%clk 0:00:12.8]} 46.
Rc3 {[%clk 0:00:03.4]} 46... Qf7 {[%clk 0:00:13.5]} 47. Rd3 {[%clk 0:00:04.2]}
47... Bg3 {[%clk 0:00:12.4]} 48. Nh3 {[%clk 0:00:03.7]} 48... Qg6 {[%clk
0:00:11.9]} 49. Nhg5 {[%clk 0:00:05]} 49... Bf4 {[%clk 0:00:11.8]} 50. Ne6+
{[%clk 0:00:06.3]} 50... Kg8 {[%clk 0:00:11]} 51. Kf3 {[%clk 0:00:07.6]} 51...
h3 {[%clk 0:00:09.3]} 52. Rc3 {[%clk 0:00:08.3]} 52... h2 {[%clk 0:00:10.7]} 53.
Rc8+ {[%clk 0:00:08.9]} 53... Kh7 {[%clk 0:00:09.4]} 54. Nf8+ {[%clk 0:00:09.3]}
54... Kh6 {[%clk 0:00:10.1]} 55. Nxg6 {[%clk 0:00:09.6]} 55... h1=Q+ {[%clk
0:00:11.2]} 0-1

[Event "*** Titled Tuesday Blitz"]
[Site "Chess.com"]
[Date "2018.09.04"]
[Round "8"]
[White "wannabe2700"]
[Black "Orest_Vovk"]
[Result "1-0"]
[WhiteElo "2593"]
[BlackElo "2437"]
[TimeControl "180+2"]
[EndTime "15:26:12 PDT"]
[Termination "wannabe2700 won by checkmate"]

1. d4 {[%clk 0:03:01.9]} 1... Nc6 {[%clk 0:02:59.6]} 2. d5 {[%clk 0:03:01.9]}
2... Ne5 {[%clk 0:02:59.8]} 3. f4 {[%clk 0:03:03.4]} 3... Ng6 {[%clk 0:03:00.8]}
4. e4 {[%clk 0:03:05]} 4... e5 {[%clk 0:03:01.6]} 5. dxe6 {[%clk 0:03:05.6]}
5... dxe6 {[%clk 0:03:01.6]} 6. Qxd8+ {[%clk 0:03:07.5]} 6... Kxd8 {[%clk
0:03:03.4]} 7. Nf3 {[%clk 0:03:08.5]} 7... Bc5 {[%clk 0:03:04.2]} 8. Nc3 {[%clk
0:03:06.8]} 8... Nh6 {[%clk 0:03:04.3]} 9. Bd3 {[%clk 0:03:05.4]} 9... Ng4
{[%clk 0:03:04]} 10. Ke2 {[%clk 0:02:51.8]} 10... Nf2 {[%clk 0:03:03.7]} 11. Rf1
{[%clk 0:02:48.2]} 11... Nxd3 {[%clk 0:03:04.4]} 12. cxd3 {[%clk 0:02:50.1]}
12... a6 {[%clk 0:03:02.2]} 13. d4 {[%clk 0:02:42.2]} 13... Ba7 {[%clk
0:03:01.2]} 14. h4 {[%clk 0:02:38.1]} 14... Bd7 {[%clk 0:02:59.6]} 15. h5 {[%clk
0:02:36.2]} 15... Ne7 {[%clk 0:03:00.2]} 16. Be3 {[%clk 0:02:20.4]} 16... b5
{[%clk 0:02:59.2]} 17. b4 {[%clk 0:02:18]} 17... a5 {[%clk 0:02:56.6]} 18. a3
{[%clk 0:02:14.2]} 18... Bb6 {[%clk 0:02:56]} 19. h6 {[%clk 0:02:08.5]} 19...
gxh6 {[%clk 0:02:55.9]} 20. Rh1 {[%clk 0:02:06.5]} 20... Rg8 {[%clk 0:02:56.1]}
21. Kf2 {[%clk 0:02:04.9]} 21... Be8 {[%clk 0:02:36.2]} 22. Ne5 {[%clk
0:02:00.3]} 22... Nc6 {[%clk 0:02:20.3]} 23. Nxc6+ {[%clk 0:01:55.7]} 23... Bxc6
{[%clk 0:02:20]} 24. Rac1 {[%clk 0:01:33.7]} 24... axb4 {[%clk 0:02:18.2]} 25.
axb4 {[%clk 0:01:35.6]} 25... Bb7 {[%clk 0:01:51]} 26. Rxh6 {[%clk 0:01:32.6]}
26... Ra3 {[%clk 0:01:43.9]} 27. Rxh7 {[%clk 0:01:29.5]} 27... Rb3 {[%clk
0:01:44.6]} 28. Rxf7 {[%clk 0:01:27.8]} 28... Rb2+ {[%clk 0:01:45.5]} 29. Kf3
{[%clk 0:01:24.7]} 29... Ke8 {[%clk 0:01:29.9]} 30. Rh7 {[%clk 0:01:13.3]} 30...
Rxb4 {[%clk 0:01:25.9]} 31. g4 {[%clk 0:01:07.2]} 31... Rb3 {[%clk 0:01:06.3]}
32. g5 {[%clk 0:01:05.3]} 32... b4 {[%clk 0:01:06.7]} 33. Nb5 {[%clk 0:01:03.5]}
33... Kd8 {[%clk 0:00:22.3]} 34. Nxc7 {[%clk 0:01:03.3]} 34... Bc8 {[%clk
0:00:20.7]} 35. Rc6 {[%clk 0:01:00.8]} 35... Bxc7 {[%clk 0:00:14.5]} 36. Rcxc7
{[%clk 0:00:47.7]} 36... Rb1 {[%clk 0:00:15.1]} 37. d5 {[%clk 0:00:24.9]} 37...
Rb3 {[%clk 0:00:11.7]} 38. d6 {[%clk 0:00:19.9]} 38... Rc3 {[%clk 0:00:09.8]}
39. Rxc3 {[%clk 0:00:19.5]} 39... bxc3 {[%clk 0:00:11.7]} 40. Rc7 {[%clk
0:00:20.8]} 40... Rh8 {[%clk 0:00:11.4]} 41. g6 {[%clk 0:00:20.7]} 41... Rh3+
{[%clk 0:00:11.6]} 42. Kg4 {[%clk 0:00:21.2]} 42... Rh2 {[%clk 0:00:11.4]} 43.
Kg3 {[%clk 0:00:20.6]} 43... Rh8 {[%clk 0:00:08.9]} 44. g7 {[%clk 0:00:21.3]}
44... Rg8 {[%clk 0:00:09.8]} 45. Bd4 {[%clk 0:00:22.6]} 45... Bd7 {[%clk
0:00:08.4]} 46. Bxc3 {[%clk 0:00:21.7]} 46... Ke8 {[%clk 0:00:08.6]} 47. Kh4
{[%clk 0:00:22.1]} 47... Kd8 {[%clk 0:00:08]} 48. Kg5 {[%clk 0:00:23.1]} 48...
e5 {[%clk 0:00:09.3]} 49. Bxe5 {[%clk 0:00:23.2]} 49... Be6 {[%clk 0:00:10.3]}
50. Bf6+ {[%clk 0:00:22.9]} 50... Ke8 {[%clk 0:00:10.8]} 51. Re7+ {[%clk
0:00:24.4]} 51... Kd8 {[%clk 0:00:09.7]} 52. Rxe6+ {[%clk 0:00:25.6]} 52... Kd7
{[%clk 0:00:11.6]} 53. f5 {[%clk 0:00:25.8]} 53... Rc8 {[%clk 0:00:10.4]} 54. e5
{[%clk 0:00:27.1]} 54... Kc6 {[%clk 0:00:10.4]} 55. Re7 {[%clk 0:00:26.5]} 55...
Kd5 {[%clk 0:00:11.3]} 56. Rf7 {[%clk 0:00:26.5]} 56... Rc1 {[%clk 0:00:10.1]}
57. Rf8 {[%clk 0:00:26.2]} 57... Rg1+ {[%clk 0:00:12]} 58. Kh6 {[%clk
0:00:27.1]} 58... Ke4 {[%clk 0:00:12.8]} 59. g8=Q {[%clk 0:00:28]} 59... Rh1+
{[%clk 0:00:13.8]} 60. Kg6 {[%clk 0:00:29.2]} 60... Kf4 {[%clk 0:00:11.5]} 61.
Bg5+ {[%clk 0:00:29.7]} 61... Kg4 {[%clk 0:00:12.1]} 62. Qc4+ {[%clk 0:00:30.5]}
62... Kh3 {[%clk 0:00:12.4]} 63. Rh8+ {[%clk 0:00:30.2]} 63... Kg2 {[%clk
0:00:12.9]} 64. Qe4+ {[%clk 0:00:30.6]} 64... Kg3 {[%clk 0:00:13.8]} 65. Bf4+
{[%clk 0:00:30.4]} 65... Kg4 {[%clk 0:00:12.8]} 66. Be3+ {[%clk 0:00:30.6]}
66... Kg3 {[%clk 0:00:13.5]} 67. Qf4+ {[%clk 0:00:31.7]} 67... Kg2 {[%clk
0:00:14.4]} 68. Qf2# {[%clk 0:00:32.1]} 1-0

[Event "*** Titled Tuesday Blitz"]
[Site "Chess.com"]
[Date "2018.09.04"]
[Round "8"]
[White "W_Amadeus"]
[Black "Blitzstream"]
[Result "1-0"]
[WhiteElo "2586"]
[BlackElo "2584"]
[TimeControl "180+2"]
[EndTime "15:26:41 PDT"]
[Termination "W_Amadeus won by resignation"]

1. d4 {[%clk 0:03:01.9]} 1... g6 {[%clk 0:03:00.6]} 2. c4 {[%clk 0:03:02.2]}
2... Bg7 {[%clk 0:03:02]} 3. e4 {[%clk 0:03:03.6]} 3... d6 {[%clk 0:03:02.9]} 4.
Nc3 {[%clk 0:03:02.4]} 4... b6 {[%clk 0:03:02.3]} 5. h3 {[%clk 0:02:45.1]} 5...
Bb7 {[%clk 0:03:02.8]} 6. Nf3 {[%clk 0:02:45.4]} 6... e6 {[%clk 0:03:01.6]} 7.
Bd3 {[%clk 0:02:45.1]} 7... Nd7 {[%clk 0:03:02.6]} 8. O-O {[%clk 0:02:45.4]}
8... Ne7 {[%clk 0:03:03.6]} 9. Bc2 {[%clk 0:02:40.2]} 9... h6 {[%clk 0:03:04.2]}
10. Be3 {[%clk 0:02:26]} 10... a6 {[%clk 0:03:03.6]} 11. Qd2 {[%clk 0:02:23.2]}
11... e5 {[%clk 0:03:04.4]} 12. Nd5 {[%clk 0:02:10.9]} 12... Nxd5 {[%clk
0:02:54.8]} 13. cxd5 {[%clk 0:02:07]} 13... Qe7 {[%clk 0:02:53.7]} 14. Rac1
{[%clk 0:01:56.9]} 14... Rc8 {[%clk 0:02:54.2]} 15. Rfd1 {[%clk 0:01:40.6]}
15... Kf8 {[%clk 0:02:49.4]} 16. b4 {[%clk 0:01:30.3]} 16... Kg8 {[%clk
0:02:47.2]} 17. Bd3 {[%clk 0:01:20.9]} 17... Kh7 {[%clk 0:02:37.6]} 18. Rc2
{[%clk 0:01:08.5]} 18... f5 {[%clk 0:02:32.5]} 19. exf5 {[%clk 0:01:00.4]} 19...
e4 {[%clk 0:02:33.2]} 20. fxg6+ {[%clk 0:01:01.6]} 20... Kxg6 {[%clk 0:02:27.9]}
21. Ne5+ {[%clk 0:01:02.1]} 21... Nxe5 {[%clk 0:01:24.1]} 22. Bxe4+ {[%clk
0:00:57.2]} 22... Kf7 {[%clk 0:01:25.2]} 23. dxe5 {[%clk 0:00:52.3]} 23... Bxe5
{[%clk 0:01:23.1]} 24. Bf5 {[%clk 0:00:44.5]} 24... Rhg8 {[%clk 0:01:05.4]} 25.
Rdc1 {[%clk 0:00:36.1]} 25... Kg7 {[%clk 0:00:12.4]} 26. Bxh6+ {[%clk 0:00:34]}
26... Kh8 {[%clk 0:00:13.1]} 27. Bxc8 {[%clk 0:00:34.8]} 27... Rxc8 {[%clk
0:00:14.3]} 28. Qg5 {[%clk 0:00:25.9]} 28... Bf6 {[%clk 0:00:14.8]} 29. Qh5
{[%clk 0:00:16.8]} 29... Qh7 {[%clk 0:00:11.2]} 30. Rxc7 {[%clk 0:00:13.2]}
30... Rxc7 {[%clk 0:00:13.1]} 31. Qe8+ {[%clk 0:00:13.8]} 31... Qg8 {[%clk
0:00:12.5]} 32. Qxg8+ {[%clk 0:00:14.7]} 32... Kxg8 {[%clk 0:00:14.4]} 33. Rxc7
{[%clk 0:00:15.7]} 33... Bxd5 {[%clk 0:00:16.3]} 34. Be3 {[%clk 0:00:13.5]}
34... b5 {[%clk 0:00:15]} 35. a3 {[%clk 0:00:10.9]} 35... Bb2 {[%clk 0:00:15.5]}
36. Bc1 {[%clk 0:00:11.6]} 36... Bd4 {[%clk 0:00:15.5]} 37. Rd7 {[%clk
0:00:10.5]} 37... Be5 {[%clk 0:00:16.1]} 38. Ra7 {[%clk 0:00:09.8]} 38... Bc4
{[%clk 0:00:12.7]} 39. Rxa6 {[%clk 0:00:10.2]} 39... d5 {[%clk 0:00:14.1]} 40.
Ra8+ {[%clk 0:00:07.9]} 40... Kf7 {[%clk 0:00:15.4]} 41. a4 {[%clk 0:00:06.4]}
41... bxa4 {[%clk 0:00:14.6]} 42. Rxa4 {[%clk 0:00:07.2]} 42... d4 {[%clk
0:00:15.9]} 43. Bb2 {[%clk 0:00:08.1]} 43... Ke6 {[%clk 0:00:13.6]} 44. Ra5
{[%clk 0:00:08.5]} 44... Bd5 {[%clk 0:00:11.5]} 45. Rc5 {[%clk 0:00:05.6]} 45...
d3 {[%clk 0:00:10.1]} 46. Bc1 {[%clk 0:00:03.9]} 46... Bd4 {[%clk 0:00:08.9]}
47. Rxd5 {[%clk 0:00:05.1]} 47... Kxd5 {[%clk 0:00:09.9]} 48. Bd2 {[%clk
0:00:06.4]} 48... Kc4 {[%clk 0:00:10.8]} 49. Kf1 {[%clk 0:00:07.7]} 49... Kb3
{[%clk 0:00:10.3]} 50. b5 {[%clk 0:00:04.8]} 50... Kc2 {[%clk 0:00:11]} 51. Bg5
{[%clk 0:00:05.8]} 51... Kb3 {[%clk 0:00:08.5]} 52. h4 {[%clk 0:00:04.3]} 52...
Kc4 {[%clk 0:00:07.8]} 53. Ke1 {[%clk 0:00:05.2]} 53... Kxb5 {[%clk 0:00:08]}
54. Kd2 {[%clk 0:00:06]} 54... Kc4 {[%clk 0:00:08.9]} 55. f3 {[%clk 0:00:07.3]}
55... Bc3+ {[%clk 0:00:09.3]} 56. Kd1 {[%clk 0:00:08.2]} 56... Kd5 {[%clk
0:00:07.2]} 57. g4 {[%clk 0:00:08.3]} 57... Ke5 {[%clk 0:00:05.4]} 58. h5 {[%clk
0:00:09.6]} 58... Ke6 {[%clk 0:00:05.3]} 59. Bd2 {[%clk 0:00:10]} 59... Bd4
{[%clk 0:00:06.5]} 60. Ke1 {[%clk 0:00:11.4]} 60... Kf6 {[%clk 0:00:07.2]} 61.
Kf1 {[%clk 0:00:12.7]} 61... Kg7 {[%clk 0:00:06.3]} 62. Kg2 {[%clk 0:00:13.8]}
62... Kf6 {[%clk 0:00:07.8]} 63. f4 {[%clk 0:00:14.9]} 63... Ke6 {[%clk
0:00:08.5]} 64. Kf3 {[%clk 0:00:16.1]} 64... Kd5 {[%clk 0:00:09.9]} 65. h6
{[%clk 0:00:14]} 65... Kc4 {[%clk 0:00:11.1]} 66. Ke4 {[%clk 0:00:14.9]} 66...
Bc3 {[%clk 0:00:11.8]} 67. h7 {[%clk 0:00:13.6]} 67... Bh8 {[%clk 0:00:10.4]}
68. g5 {[%clk 0:00:13.9]} 68... Kc5 {[%clk 0:00:11.9]} 69. f5 {[%clk 0:00:14.8]}
69... Kd6 {[%clk 0:00:13.8]} 70. Kxd3 {[%clk 0:00:15.6]} 70... Ke7 {[%clk
0:00:15.3]} 71. Bc3 {[%clk 0:00:16.5]} 71... Kf8 {[%clk 0:00:17.2]} 72. Bxh8
{[%clk 0:00:16.7]} 72... Kf7 {[%clk 0:00:19.1]} 73. g6+ {[%clk 0:00:17.7]} 1-0